[Event "World Senior chT-50 2019"]
[Site "Rhodes"]
[Date "2019.04.19"]
[Round "4.30"]
[White "Ilandzis, Spyridon"]
[Black "Semakoff, Aleks"]
[Result "1-0"]
[ECO "D02"]
[WhiteElo "2021"]
[BlackElo "2037"]
[PlyCount "74"]
[EventDate "2019.04.16"]
[EventType "team-tourn"]
[EventCountry "GRE"]
[TimeControl "40/5400+30:1800+30"]

1. d4 {[%emt 0:00:00]} d5 {[%emt 0:00:00]} 2. Bf4 {[%emt 0:00:52]} Bf5 {[%emt 0:00:23]} 3. Nf3 {[%emt 0:00:46]} e6 {[%emt 0:00:51]} 4. e3 {[%emt 0:01:00]} Bd6 {[%emt 0:01:26]} 5. Bg3 {[%emt 0:01:02]} Nf6 {[%emt 0:01:50]} 6. c4 {[%emt 0:07:32]} O-O {[%emt 0:05:10]} 7. Nc3 {[%emt 0:04:58]} c6 {[%emt 0:08:49]} 8. Qb3 {[%emt 0:05:24]} Bxg3 {[%emt 0:10:27]} 9. hxg3 {[%emt 0:00:33]} Qb6 {[%emt 0:02:00]} 10. c5 {[%emt 0:11:10]} Qc7 {[%emt 0:06:10]} 11. Nh4 {[%emt 0:03:10]} Bg4 {[%emt 0:07:24]} 12. Bd3 {[%emt 0:05:54]} Nbd7 {[%emt 0:04:38]} 13. f4 {[%emt 0:01:24]} b6 {[%emt 0:00:52]} 14. cxb6 {[%emt 0:02:50]} axb6 {[%emt 0:02:16]} 15. Qc2 {[%emt 0:02:27]} c5 {[%emt 0:10:50]} 16. Nb5 {[%emt 0:16:31]} Qc6 {[%emt 0:03:27]} 17. Bxh7+ {[%emt 0:06:08]} Nxh7 {[%emt 0:01:08]} 18. Qxh7+ {[%emt 0:00:35]} Kxh7 {[%emt 0:00:16]} 19. Nf5+ {[%emt 0:00:15]} Bh5 {[%emt 0:01:19]} 20. Ne7 {[%emt 0:01:18]} g6 {[%emt 0:03:30]} 21. Nxc6 {[%emt 0:00:21]} Kg7 {[%emt 0:00:43]} 22. Ne5 {[%emt 0:05:20]} Nxe5 {[%emt 0:04:33]} 23. dxe5 {[%emt 0:00:22]} Rh8 {[%emt 0:04:57]} 24. Kd2 {[%emt 0:03:03]} Bg4 {[%emt 0:02:01]} 25. a3 {[%emt 0:00:58]} f6 {[%emt 0:01:27]} 26. exf6+ {[%emt 0:01:30]} Kxf6 {[%emt 0:00:14]} 27. Rh4 {[%emt 0:01:11]} Rxh4 {[%emt 0:01:31]} 28. gxh4 {[%emt 0:00:02]} e5 {[%emt 0:02:13]} 29. Nc3 {[%emt 0:04:15]} Rd8 {[%emt 0:01:03]} 30. Rf1 {[%emt 0:00:40]} e4 {[%emt 0:01:52]} 31. b4 {[%emt 0:02:41]} Bf5 {[%emt 0:04:52]} 32. bxc5 {[%emt 0:05:40]} bxc5 {[%emt 0:00:11]} 33. Rd1 {[%emt 0:01:27]} d4 {[%emt 0:01:15]} 34. Ke1 {[%emt 0:00:47]} Rd7 {[%emt 0:03:31]} 35. Na4 {[%emt 0:01:28]} Rd5 {[%emt 0:00:55]} 36. Rc1 {[%emt 0:01:03]} d3 {[%emt 0:00:16]} 37. Kd2 {[%emt 0:00:04]} Rd8 {[%emt 0:01:51]} 1-0

[Event "World Senior chT-50 2019"]
[Site "Rhodes"]
[Date "2019.04.19"]
[Round "4.31"]
[White "Berg, Anders Hoyer"]
[Black "Hrisanthopoulos, Dimitrios"]
[Result "1/2-1/2"]
[ECO "B22"]
[WhiteElo "2046"]
[BlackElo "1995"]
[PlyCount "57"]
[EventDate "2019.04.16"]
[EventType "team-tourn"]
[EventCountry "GRE"]
[TimeControl "40/5400+30:1800+30"]

1. e4 {[%emt 0:00:00]} c5 {[%emt 0:00:00]} 2. c3 {[%emt 0:00:00]} Nf6 {[%emt 0:00:00]} 3. e5 {[%emt 0:00:06]} Nd5 {[%emt 0:00:00]} 4. Nf3 {[%emt 0:00:28]} e6 {[%emt 0:00:23]} 5. d4 {[%emt 0:00:35]} cxd4 {[%emt 0:00:19]} 6. cxd4 {[%emt 0:00:21]} d6 {[%emt 0:00:20]} 7. Bc4 {[%emt 0:02:36]} Nc6 {[%emt 0:00:21]} 8. O-O {[%emt 0:01:14]} Be7 {[%emt 0:00:50]} 9. Qe2 {[%emt 0:01:58]} O-O {[%emt 0:04:00]} 10. Nc3 {[%emt 0:01:33]} Nxc3 {[%emt 0:01:40]} 11. bxc3 {[%emt 0:00:12]} b6 {[%emt 0:01:45]} 12. Bd3 {[%emt 0:07:38]} Bb7 {[%emt 0:03:53]} 13. Qe4 {[%emt 0:02:09]} g6 {[%emt 0:00:18]} 14. Bh6 {[%emt 0:13:09]} Re8 {[%emt 0:00:36]} 15. Rad1 {[%emt 0:11:53]} Qc7 {[%emt 0:05:26]} 16. Qf4 {[%emt 0:04:20]} dxe5 {[%emt 0:06:52]} 17. dxe5 {[%emt 0:02:29]} Rad8 {[%emt 0:08:11]} 18. Rfe1 {[%emt 0:12:28]} Rd5 {[%emt 0:24:04]} 19. c4 {[%emt 0:18:33]} Rc5 {[%emt 0:02:44]} 20. Bg5 {[%emt 0:04:02]} Na5 {[%emt 0:09:15]} 21. Bxe7 {[%emt 0:02:00]} Qxe7 {[%emt 0:01:00]} 22. Ng5 {[%emt 0:06:04]} Qf8 {[%emt 0:13:31]} 23. h4 {[%emt 0:01:35]} Rec8 {[%emt 0:01:02]} 24. Ne4 {[%emt 0:02:59]} Bxe4 {[%emt 0:00:29]} 25. Rxe4 {[%emt 0:00:07]} Rd8 {[%emt 0:02:41]} 26. h5 {[%emt 0:01:14]} Rc7 {[%emt 0:01:26]} 27. Be2 {[%emt 0:01:40]} Nc6 {[%emt 0:05:00]} 28. Rxd8 {[%emt 0:00:45]} Qxd8 {[%emt 0:00:03]} 29. h6 {[%emt 0:01:22]} 1/2-1/2

[Event "World Senior chT-50 2019"]
[Site "Rhodes"]
[Date "2019.04.19"]
[Round "4.32"]
[White "Papadimitriou, Loukas"]
[Black "Johnsen, Sylvia"]
[Result "1/2-1/2"]
[ECO "D35"]
[WhiteElo "1943"]
[BlackElo "1949"]
[PlyCount "105"]
[EventDate "2019.04.16"]
[EventType "team-tourn"]
[EventCountry "GRE"]
[TimeControl "40/5400+30:1800+30"]

1. d4 {[%emt 0:00:00]} d5 {[%emt 0:00:00]} 2. c4 {[%emt 0:00:00]} e6 {[%emt 0:00:00]} 3. Nc3 {[%emt 0:00:00]} Nf6 {[%emt 0:00:00]} 4. Bg5 {[%emt 0:00:08]} Be7 {[%emt 0:00:00]} 5. e3 {[%emt 0:00:04]} Nbd7 {[%emt 0:00:00]} 6. cxd5 {[%emt 0:00:21]} exd5 {[%emt 0:00:14]} 7. Bd3 {[%emt 0:00:11]} h6 {[%emt 0:00:22]} 8. Bf4 {[%emt 0:01:35]} c6 {[%emt 0:00:08]} 9. h3 {[%emt 0:00:18]} O-O {[%emt 0:04:40]} 10. Nf3 {[%emt 0:00:12]} a6 {[%emt 0:04:02]} 11. O-O {[%emt 0:01:11]} c5 {[%emt 0:01:37]} 12. Rc1 {[%emt 0:01:57]} c4 {[%emt 0:14:23]} 13. Be2 {[%emt 0:00:32]} b5 {[%emt 0:01:16]} 14. Ne5 {[%emt 0:00:16]} Bb7 {[%emt 0:00:14]} 15. a3 {[%emt 0:01:46]} Rc8 {[%emt 0:18:22]} 16. Bf3 {[%emt 0:04:28]} Ne4 {[%emt 0:03:01]} 17. Bg4 {[%emt 0:05:12]} f5 {[%emt 0:11:17]} 18. Bh5 {[%emt 0:00:04]} Nxe5 {[%emt 0:15:20]} 19. Bxe5 {[%emt 0:01:21]} Bd6 {[%emt 0:01:27]} 20. f4 {[%emt 0:08:41]} Bc6 {[%emt 0:05:30]} 21. Nxe4 {[%emt 0:02:48]} dxe4 {[%emt 0:00:55]} 22. Qe1 {[%emt 0:00:37]} Be8 {[%emt 0:08:57]} 23. Bxe8 {[%emt 0:05:30]} Rxe8 {[%emt 0:00:28]} 24. Qg3 {[%emt 0:00:06]} Qd7 {[%emt 0:03:54]} 25. Qg6 {[%emt 0:00:44]} Bxe5 {[%emt 0:02:01]} 26. fxe5 {[%emt 0:00:10]} Rf8 {[%emt 0:00:17]} 27. Qxa6 {[%emt 0:01:38]} f4 {[%emt 0:01:48]} 28. e6 {[%emt 0:02:13]} Qc6 {[%emt 0:00:31]} 29. Qxc6 {[%emt 0:00:13]} Rxc6 {[%emt 0:00:01]} 30. d5 {[%emt 0:03:49]} Rd6 {[%emt 0:00:01]} 31. Rxf4 {[%emt 0:00:40]} Rxf4 {[%emt 0:00:15]} 32. exf4 {[%emt 0:00:01]} Rxd5 {[%emt 0:00:01]} 33. Re1 {[%emt 0:00:05]} Rd4 {[%emt 0:00:22]} 34. Kf2 {[%emt 0:00:22]} Rd2+ {[%emt 0:01:54]} 35. Re2 {[%emt 0:00:09]} Rd3 {[%emt 0:00:33]} 36. Rxe4 {[%emt 0:00:08]} Kf8 {[%emt 0:00:03]} 37. e7+ {[%emt 0:00:11]} Ke8 {[%emt 0:00:00]} 38. h4 {[%emt 0:01:31]} Rb3 {[%emt 0:01:15]} 39. Re2 {[%emt 0:00:16]} Rd3 {[%emt 0:00:10]} 40. h5 {[%emt 0:00:00]} Rd5 {[%emt 0:00:00]} 41. g4 {[%emt 0:02:20]} Rd3 {[%emt 0:02:16]} 42. Kg2 {[%emt 0:00:17]} c3 {[%emt 0:03:52]} 43. bxc3 {[%emt 0:02:56]} Rxc3 {[%emt 0:00:06]} 44. Re5 {[%emt 0:02:46]} Rxa3 {[%emt 0:00:15]} 45. g5 {[%emt 0:01:06]} b4 {[%emt 0:05:10]} 46. gxh6 {[%emt 0:00:09]} gxh6 {[%emt 0:00:09]} 47. f5 {[%emt 0:00:15]} Ra6 {[%emt 0:00:42]} 48. Rb5 {[%emt 0:03:20]} Kxe7 {[%emt 0:00:38]} 49. Kf3 {[%emt 0:03:11]} Kf6 {[%emt 0:04:36]} 50. Kf4 {[%emt 0:00:30]} b3 {[%emt 0:00:45]} 51. Rxb3 {[%emt 0:01:20]} Ra4+ {[%emt 0:00:10]} 52. Kg3 {[%emt 0:00:07]} Kxf5 {[%emt 0:00:24]} 53. Rb5+ {[%emt 0:00:10] Ke5 [%emt 00:00:28]} 1/2-1/2

[Event "World Senior chT-50 2019"]
[Site "Rhodes"]
[Date "2019.04.19"]
[Round "4.33"]
[White "Lagerborg, Krister"]
[Black "Grant, Jonathan I M"]
[Result "1/2-1/2"]
[ECO "B12"]
[WhiteElo "2102"]
[BlackElo "2226"]
[PlyCount "109"]
[EventDate "2019.04.16"]
[EventType "team-tourn"]
[EventCountry "GRE"]
[TimeControl "40/5400+30:1800+30"]

1. e4 {[%emt 0:00:00]} c6 {[%emt 0:00:00]} 2. d4 {[%emt 0:00:00]} d5 {[%emt 0:00:00]} 3. e5 {[%emt 0:00:00]} Bf5 {[%emt 0:00:00]} 4. Nf3 {[%emt 0:00:01]} e6 {[%emt 0:00:00]} 5. Be2 {[%emt 0:00:22]} Nd7 {[%emt 0:00:00]} 6. Be3 {[%emt 0:00:44]} h6 {[%emt 0:01:38]} 7. Nbd2 {[%emt 0:04:06]} Ne7 {[%emt 0:00:36]} 8. Nf1 {[%emt 0:06:19]} a6 {[%emt 0:06:05]} 9. Ng3 {[%emt 0:02:05]} Bg4 {[%emt 0:00:20]} 10. O-O {[%emt 0:02:04]} Nf5 {[%emt 0:07:26]} 11. Nxf5 {[%emt 0:01:07]} Bxf5 {[%emt 0:00:20]} 12. h3 {[%emt 0:02:51]} h5 {[%emt 0:05:31]} 13. c3 {[%emt 0:04:25]} Be7 {[%emt 0:01:19]} 14. Qd2 {[%emt 0:02:26]} Qc7 {[%emt 0:02:17]} 15. Ne1 {[%emt 0:06:03]} c5 {[%emt 0:01:43]} 16. Bd3 {[%emt 0:04:54]} Bxd3 {[%emt 0:04:10]} 17. Nxd3 {[%emt 0:00:29]} c4 {[%emt 0:02:17]} 18. Ne1 {[%emt 0:00:48]} O-O-O {[%emt 0:03:50]} 19. f4 {[%emt 0:02:18]} g6 {[%emt 0:05:00]} 20. Nf3 {[%emt 0:02:24]} Nb8 {[%emt 0:03:41]} 21. Qe2 {[%emt 0:05:05]} Nc6 {[%emt 0:04:01]} 22. Nd2 {[%emt 0:05:40]} Kb8 {[%emt 0:02:07]} 23. Rfb1 {[%emt 0:04:24]} Na5 {[%emt 0:03:35]} 24. Rc1 {[%emt 0:09:35]} Rc8 {[%emt 0:02:13]} 25. Qd1 {[%emt 0:06:57]} Qd7 {[%emt 0:08:12]} 26. b4 {[%emt 0:03:19]} Nc6 {[%emt 0:00:31]} 27. Rcb1 {[%emt 0:01:44]} Na7 {[%emt 0:02:12]} 28. a4 {[%emt 0:03:00]} b6 {[%emt 0:00:06]} 29. Qc2 {[%emt 0:02:56]} Rc7 {[%emt 0:03:55]} 30. Nf3 {[%emt 0:03:14]} Rcc8 {[%emt 0:00:28]} 31. g3 {[%emt 0:05:02]} Rcf8 {[%emt 0:01:49]} 32. Kg2 {[%emt 0:01:16]} Nc8 {[%emt 0:01:35]} 33. Rh1 {[%emt 0:00:35]} Kb7 {[%emt 0:04:19]} 34. g4 {[%emt 0:02:19]} Rfg8 {[%emt 0:01:05]} 35. a5 {[%emt 0:00:58]} b5 {[%emt 0:02:05]} 36. Raf1 {[%emt 0:00:28]} Qe8 {[%emt 0:03:59]} 37. Qd1 {[%emt 0:01:11]} Na7 {[%emt 0:01:29]} 38. Kf2 {[%emt 0:01:04]} Nc6 {[%emt 0:03:01]} 39. Bd2 {[%emt 0:01:24]} Bd8 {[%emt 0:03:53]} 40. Ke2 {[%emt 0:00:00]} Rg7 {[%emt 0:00:00]} 41. Qe1 {[%emt 0:05:10]} Rgh7 {[%emt 0:09:12]} 42. Rhg1 {[%emt 0:12:21]} hxg4 {[%emt 0:12:51]} 43. hxg4 {[%emt 0:00:04]} Rh3 {[%emt 0:01:14]} 44. Rh1 {[%emt 0:03:10]} Qg8 {[%emt 0:01:17]} 45. Rxh3 {[%emt 0:01:22]} Rxh3 {[%emt 0:00:02]} 46. Rh1 {[%emt 0:01:24]} Qh7 {[%emt 0:01:10]} 47. Rxh3 {[%emt 0:00:16]} Qh6 {[%emt 0:00:08]} 48. Rh4 Qxh4 {[%emt 0:00:30]} 49. Qg1 {[%emt 0:01:06]} Qh3 {[%emt 0:03:46]} 50. Be1 {[%emt 0:00:38]} Kc8 {[%emt 0:01:14]} 51. Qg3 {[%emt 0:02:53]} Kd7 {[%emt 0:02:56]} 52. Qh2 {[%emt 0:00:30]} Qxh2+ {[%emt 0:01:20]} 53. Nxh2 {[%emt 0:00:39]} Be7 {[%emt 0:03:48]} 54. Nf1 {[%emt 0:00:52]} Bf8 {[%emt 0:00:49]} 55. Ne3 {[%emt 0:03:54]} 1/2-1/2

[Event "World Senior chT-50 2019"]
[Site "Rhodes"]
[Date "2019.04.19"]
[Round "4.34"]
[White "Farrell, Neil"]
[Black "Gamback, Bjorn"]
[Result "1/2-1/2"]
[ECO "E00"]
[WhiteElo "2132"]
[BlackElo "2101"]
[PlyCount "112"]
[EventDate "2019.04.16"]
[EventType "team-tourn"]
[EventCountry "GRE"]
[TimeControl "40/5400+30:1800+30"]

1. d4 {[%emt 0:00:00]} Nf6 {[%emt 0:00:00]} 2. c4 {[%emt 0:00:00]} e6 {[%emt 0:00:00]} 3. g3 {[%emt 0:00:00]} Bb4+ {[%emt 0:00:05]} 4. Bd2 {[%emt 0:00:11]} a5 {[%emt 0:00:06]} 5. Bg2 {[%emt 0:01:25]} O-O {[%emt 0:00:14]} 6. e4 {[%emt 0:04:19]} d6 {[%emt 0:00:43]} 7. Ne2 {[%emt 0:00:54]} Nbd7 {[%emt 0:02:00]} 8. O-O {[%emt 0:05:06]} e5 {[%emt 0:01:17]} 9. d5 {[%emt 0:06:21]} Bxd2 {[%emt 0:02:15]} 10. Qxd2 {[%emt 0:00:37]} Nc5 {[%emt 0:00:24]} 11. Nbc3 {[%emt 0:01:10]} a4 {[%emt 0:00:34]} 12. Qc2 {[%emt 0:09:24]} Bg4 {[%emt 0:14:21]} 13. b4 {[%emt 0:01:50]} axb3 {[%emt 0:00:52]} 14. axb3 {[%emt 0:00:15]} Bxe2 {[%emt 0:11:12]} 15. Nxe2 {[%emt 0:01:32]} Qe7 {[%emt 0:00:16]} 16. b4 {[%emt 0:02:49]} Ncd7 {[%emt 0:00:25]} 17. Nc3 {[%emt 0:12:51]} Nb6 {[%emt 0:05:38]} 18. Qb3 {[%emt 0:06:56]} Rfb8 {[%emt 0:03:26]} 19. Rfc1 {[%emt 0:04:29]} Nbd7 {[%emt 0:10:06]} 20. Nb5 {[%emt 0:04:01]} Ne8 {[%emt 0:06:56]} 21. Qc3 {[%emt 0:04:03]} Qd8 {[%emt 0:10:37]} 22. c5 {[%emt 0:08:21]} Rxa1 {[%emt 0:00:54]} 23. Rxa1 {[%emt 0:00:23]} Ra8 {[%emt 0:00:03]} 24. Rc1 {[%emt 0:09:37]} Ndf6 {[%emt 0:00:15]} 25. c6 {[%emt 0:02:01]} b6 {[%emt 0:00:30]} 26. Ra1 {[%emt 0:03:59]} Qc8 {[%emt 0:03:51]} 27. Rxa8 {[%emt 0:00:53]} Qxa8 {[%emt 0:00:09]} 28. Qa3 {[%emt 0:00:04]} Qxa3 {[%emt 0:03:28]} 29. Nxa3 {[%emt 0:00:02]} Kf8 {[%emt 0:00:12]} 30. f3 {[%emt 0:00:31]} Ke7 {[%emt 0:00:42]} 31. Kf2 {[%emt 0:00:49]} Ng8 {[%emt 0:02:50]} 32. Bh3 {[%emt 0:00:37]} Nh6 {[%emt 0:02:53]} 33. Nb5 {[%emt 0:00:58]} Kd8 {[%emt 0:00:14]} 34. Ke3 {[%emt 0:00:58]} Ng8 {[%emt 0:02:13]} 35. Kd3 {[%emt 0:00:50]} Ne7 {[%emt 0:00:56]} 36. f4 {[%emt 0:02:35]} Ng6 {[%emt 0:00:19]} 37. Ke3 {[%emt 0:00:50]} Nf6 {[%emt 0:00:41]} 38. f5 {[%emt 0:03:54]} Nf8 {[%emt 0:01:40]} 39. Kf3 {[%emt 0:01:31]} h5 {[%emt 0:02:36]} 40. Bg2 {[%emt 0:00:00]} N8h7 {[%emt 0:00:00]} 41. h3 {[%emt 0:01:15]} Kc8 {[%emt 0:03:36]} 42. Ke3 {[%emt 0:02:18]} Kb8 {[%emt 0:01:16]} 43. Bf3 {[%emt 0:00:31]} Ng5 {[%emt 0:04:20]} 44. Bg2 {[%emt 0:00:07]} Ngh7 {[%emt 0:00:21]} 45. Nc3 {[%emt 0:00:15]} Ka7 {[%emt 0:01:48]} 46. Nd1 {[%emt 0:05:46]} Kb8 {[%emt 0:02:20]} 47. Bf1 {[%emt 0:00:27]} Kc8 {[%emt 0:00:38]} 48. Be2 {[%emt 0:00:44]} Ng5 {[%emt 0:01:51]} 49. Nf2 {[%emt 0:00:10]} Kd8 {[%emt 0:00:59]} 50. Bc4 {[%emt 0:02:30]} Ke7 {[%emt 0:01:45]} 51. h4 {[%emt 0:00:20]} Ngh7 {[%emt 0:00:09]} 52. Be2 {[%emt 0:00:10]} Kd8 {[%emt 0:02:12]} 53. Bf3 {[%emt 0:05:36]} Kc8 {[%emt 0:02:31]} 54. Nh3 {[%emt 0:00:48]} Ng4+ {[%emt 0:04:09]} 55. Kd3 {[%emt 0:02:09]} Kb8 {[%emt 0:04:30]} 56. Ke2 {[%emt 0:10:18]} Ka7 {[%emt 0:01:10]} 1/2-1/2

[Event "World Senior chT-50 2019"]
[Site "Rhodes"]
[Date "2019.04.19"]
[Round "4.35"]
[White "Franzen, Thomas"]
[Black "Neave, George"]
[Result "1/2-1/2"]
[ECO "D00"]
[WhiteElo "2015"]
[BlackElo "2101"]
[PlyCount "91"]
[EventDate "2019.04.16"]
[EventType "team-tourn"]
[EventCountry "GRE"]
[TimeControl "40/5400+30:1800+30"]

1. d4 {[%emt 0:00:00]} Nf6 {[%emt 0:00:00]} 2. Nc3 {[%emt 0:00:08]} d5 {[%emt 0:00:08]} 3. Bf4 {[%emt 0:00:27]} g6 {[%emt 0:00:21]} 4. e3 {[%emt 0:02:16]} Bg7 {[%emt 0:00:13]} 5. h4 {[%emt 0:00:36]} h5 {[%emt 0:05:39]} 6. Nf3 {[%emt 0:01:35]} O-O {[%emt 0:00:22]} 7. Ne5 {[%emt 0:02:06]} c5 {[%emt 0:02:05]} 8. f3 {[%emt 0:07:12]} cxd4 {[%emt 0:00:23]} 9. exd4 {[%emt 0:00:17]} Nc6 {[%emt 0:00:06]} 10. Qd2 {[%emt 0:01:13]} Bf5 {[%emt 0:07:10]} 11. O-O-O {[%emt 0:09:11]} Rc8 {[%emt 0:04:45]} 12. Kb1 {[%emt 0:08:07]} Qa5 {[%emt 0:20:50]} 13. a3 {[%emt 0:17:21]} a6 {[%emt 0:01:48]} 14. Be2 {[%emt 0:01:44]} b5 {[%emt 0:00:46]} 15. g4 {[%emt 0:07:01]} hxg4 {[%emt 0:03:00]} 16. fxg4 {[%emt 0:00:33]} Ne4 {[%emt 0:07:32]} 17. Nxe4 {[%emt 0:02:59]} Bxe4 {[%emt 0:18:15]} 18. Nxc6 {[%emt 0:02:28]} Qxd2 {[%emt 0:00:10]} 19. Nxe7+ {[%emt 0:00:06]} Kh7 {[%emt 0:00:09]} 20. Rxd2 {[%emt 0:00:26]} Bxh1 {[%emt 0:00:31]} 21. Nxc8 {[%emt 0:00:36]} Rxc8 {[%emt 0:00:06]} 22. c3 {[%emt 0:11:25]} Re8 {[%emt 0:00:44]} 23. h5 {[%emt 0:07:59]} Re4 {[%emt 0:03:56]} 24. hxg6+ {[%emt 0:00:31]} fxg6 {[%emt 0:00:06]} 25. Bg5 {[%emt 0:00:29]} Re6 {[%emt 0:00:33]} 26. Kc2 {[%emt 0:03:03]} Bh6 {[%emt 0:00:39]} 27. Bxh6 {[%emt 0:00:47]} Kxh6 {[%emt 0:00:08]} 28. Bd1 {[%emt 0:04:21]} Kg5 {[%emt 0:00:30]} 29. Rf2 {[%emt 0:00:25]} Be4+ {[%emt 0:02:47]} 30. Kb3 {[%emt 0:00:16]} Kh4 {[%emt 0:01:24]} 31. Kb4 {[%emt 0:02:00]} Kg3 {[%emt 0:00:11]} 32. Rf8 {[%emt 0:00:16]} g5 {[%emt 0:01:40]} 33. Rg8 {[%emt 0:01:28]} Kh4 {[%emt 0:02:06]} 34. a4 {[%emt 0:00:20]} Bd3 {[%emt 0:02:50]} 35. axb5 {[%emt 0:02:12]} axb5 {[%emt 0:00:11]} 36. Rh8+ {[%emt 0:00:36]} Kg3 {[%emt 0:00:07]} 37. Rh5 {[%emt 0:00:14]} Kf4 {[%emt 0:00:15]} 38. Rh8 {[%emt 0:00:10]} Kg3 {[%emt 0:05:59]} 39. Rf8 {[%emt 0:00:29]} Kh4 {[%emt 0:00:14]} 40. Rf3 {[%emt 0:00:00]} Be2 {[%emt 0:00:00]} 41. Bxe2 {[%emt 0:04:23]} Rxe2 {[%emt 0:02:25]} 42. Kc5 {[%emt 0:00:28]} Rxb2 {[%emt 0:00:57]} 43. Kxd5 {[%emt 0:00:10]} Kxg4 {[%emt 0:00:22]} 44. Rd3 {[%emt 0:01:30]} Kf4 {[%emt 0:02:29]} 45. Kc6 {[%emt 0:00:53]} Ke4 {[%emt 0:02:33]} 46. Rg3 {[%emt 0:01:10]} 1/2-1/2

[Event "World Senior chT-50 2019"]
[Site "Rhodes"]
[Date "2019.04.19"]
[Round "4.36"]
[White "Smith, Peter R"]
[Black "Johansson, Bjorn"]
[Result "0-1"]
[ECO "A41"]
[WhiteElo "2038"]
[BlackElo "1888"]
[PlyCount "64"]
[EventDate "2019.04.16"]
[EventType "team-tourn"]
[EventCountry "GRE"]
[TimeControl "40/5400+30:1800+30"]

1. Nf3 {[%emt 0:00:00]} g6 {[%emt 0:00:13]} 2. c4 {[%emt 0:00:00]} Bg7 {[%emt 0:00:43]} 3. Nc3 {[%emt 0:00:02]} d6 {[%emt 0:00:23]} 4. d4 {[%emt 0:00:23]} Nd7 {[%emt 0:00:14]} 5. Bg5 {[%emt 0:01:30]} h6 {[%emt 0:01:02]} 6. Bh4 {[%emt 0:00:35]} c6 {[%emt 0:03:25]} 7. e3 {[%emt 0:00:23]} g5 {[%emt 0:05:46]} 8. Bg3 {[%emt 0:00:35]} e5 {[%emt 0:00:12]} 9. dxe5 {[%emt 0:03:07]} dxe5 {[%emt 0:03:46]} 10. Qc2 {[%emt 0:09:13]} Ne7 {[%emt 0:02:06]} 11. O-O-O {[%emt 0:01:47]} Qc7 {[%emt 0:00:20]} 12. Be2 {[%emt 0:10:38]} O-O {[%emt 0:04:34]} 13. h4 {[%emt 0:07:04]} g4 {[%emt 0:01:29]} 14. Nd4 {[%emt 0:04:00]} Nc5 {[%emt 0:03:09]} 15. e4 {[%emt 0:04:09]} f5 {[%emt 0:02:18]} 16. exf5 {[%emt 0:03:17]} Nxf5 {[%emt 0:05:25]} 17. Nxf5 {[%emt 0:00:53]} Bxf5 {[%emt 0:02:46]} 18. Qd2 {[%emt 0:00:06]} Qa5 {[%emt 0:01:03]} 19. Qe3 {[%emt 0:08:33]} Rad8 {[%emt 0:01:51]} 20. Nd5 {[%emt 0:04:11]} cxd5 {[%emt 0:04:28]} 21. Qa3 {[%emt 0:05:54]} Qxa3 {[%emt 0:01:39]} 22. bxa3 {[%emt 0:00:01]} d4 {[%emt 0:00:32]} 23. Rd2 {[%emt 0:01:39]} h5 {[%emt 0:01:32]} 24. Rb2 {[%emt 0:01:17]} e4 {[%emt 0:01:27]} 25. Rb5 {[%emt 0:02:08]} b6 {[%emt 0:00:47]} 26. Bd1 {[%emt 0:00:33]} Bd7 {[%emt 0:00:39]} 27. Rb1 {[%emt 0:00:37]} Bh6+ {[%emt 0:00:35]} 28. Kb2 {[%emt 0:00:36]} Bf5 {[%emt 0:03:13]} 29. Bc2 {[%emt 0:02:39]} d3 {[%emt 0:01:08]} 30. Bb3 {[%emt 0:00:14]} Bg7+ {[%emt 0:03:41]} 31. Kc1 {[%emt 0:00:15]} e3 {[%emt 0:00:49]} 32. Kd1 {[%emt 0:02:20]} e2+ {[%emt 0:01:51]} 0-1

[Event "World Senior chT-50 2019"]
[Site "Rhodes"]
[Date "2019.04.19"]
[Round "4.37"]
[White "Wallace, John Paul"]
[Black "Priedite, Ingrida"]
[Result "0-1"]
[ECO "B75"]
[WhiteElo "2350"]
[BlackElo "2044"]
[PlyCount "107"]
[EventDate "2019.04.16"]
[EventType "team-tourn"]
[EventCountry "GRE"]
[TimeControl "40/5400+30:1800+30"]

1. e4 {[%emt 0:03:07]} c5 {[%emt 0:00:00]} 2. Nc3 {[%emt 0:00:11]} Nc6 {[%emt 0:00:24]} 3. Nf3 {[%emt 0:00:06]} g6 {[%emt 0:06:56]} 4. d4 {[%emt 0:00:28]} cxd4 {[%emt 0:00:07]} 5. Nxd4 {[%emt 0:00:04]} Bg7 {[%emt 0:00:14]} 6. Be3 {[%emt 0:00:10]} d6 {[%emt 0:04:46]} 7. Qd2 {[%emt 0:00:27]} Nf6 {[%emt 0:02:14]} 8. f3 {[%emt 0:00:11]} a6 {[%emt 0:04:22]} 9. O-O-O {[%emt 0:03:15]} Bd7 {[%emt 0:08:42]} 10. g4 {[%emt 0:04:40]} h6 {[%emt 0:08:27]} 11. h4 {[%emt 0:33:43]} b5 {[%emt 0:05:35]} 12. Be2 {[%emt 0:10:00]} Ne5 {[%emt 0:12:45]} 13. Kb1 {[%emt 0:00:16]} Nc4 {[%emt 0:04:54]} 14. Bxc4 {[%emt 0:00:06]} bxc4 {[%emt 0:00:04]} 15. Ka1 $16 {[%emt 0:00:11]} Rb8 {[%emt 0:00:57]} 16. Nb1 {[%emt 0:08:16]} Qb6 {[%emt 0:04:51]} 17. Qc3 {[%emt 0:07:52]} Qb7 {[%emt 0:00:32]} 18. Bc1 {[%emt 0:00:37]} Bb5 {[%emt 0:02:01]} 19. h5 {[%emt 0:01:40]} g5 {[%emt 0:06:10]} 20. Nf5 {[%emt 0:00:25]} Kf8 {[%emt 0:00:09]} 21. Rh2 {[%emt 0:10:34]} Bd7 {[%emt 0:01:06]} 22. Nxg7 {[%emt 0:00:45]} Kxg7 {[%emt 0:00:07]} 23. e5 {[%emt 0:00:30]} dxe5 {[%emt 0:01:49]} 24. Qxe5 {[%emt 0:00:05]} Be6 {[%emt 0:01:33]} 25. f4 {[%emt 0:03:56]} Qb5 {[%emt 0:01:32]} 26. Qc3 {[%emt 0:01:01]} Qb4 {[%emt 0:00:55]} 27. fxg5 {[%emt 0:00:24]} Qxc3 {[%emt 0:00:26]} 28. gxh6+ {[%emt 0:00:13]} Kf8 {[%emt 0:00:33]} 29. Nxc3 {[%emt 0:00:36]} Nxg4 {[%emt 0:00:46]} 30. Bf4 {[%emt 0:02:24]} Re8 {[%emt 0:05:31]} 31. Rg2 {[%emt 0:01:53]} Nxh6 {[%emt 0:02:55]} 32. Ne4 {[%emt 0:02:56]} f6 {[%emt 0:02:39]} 33. Nc5 {[%emt 0:01:43]} Kf7 {[%emt 0:02:43]} 34. Nxe6 {[%emt 0:00:48]} Kxe6 {[%emt 0:00:14]} 35. b3 {[%emt 0:02:14]} Nf5 {[%emt 0:05:14]} 36. Rh2 {[%emt 0:00:21]} Kf7 {[%emt 0:02:38]} 37. Rf1 {[%emt 0:00:51]} c3 {[%emt 0:01:31]} 38. Be5 {[%emt 0:00:39]} Ne3 {[%emt 0:00:41]} 39. Rf3 {[%emt 0:00:25]} Ng4 {[%emt 0:00:12]} 40. Re2 {[%emt 0:00:00]} Nxe5 {[%emt 0:00:00]} 41. Rxe5 {[%emt 0:01:19]} Rd8 {[%emt 0:02:22]} 42. Re1 {[%emt 0:15:47]} Rxh5 {[%emt 0:01:52]} 43. Rxc3 {[%emt 0:00:06]} e5 {[%emt 0:03:52]} 44. Rc6 {[%emt 0:00:53]} Re8 {[%emt 0:03:54]} 45. b4 {[%emt 0:06:52]} f5 {[%emt 0:03:29]} 46. a4 {[%emt 0:01:14]} f4 {[%emt 0:08:03]} 47. Rf1 {[%emt 0:03:29]} Rf5 {[%emt 0:00:29]} 48. Rc5 {[%emt 0:02:34]} f3 {[%emt 0:04:49]} 49. b5 {[%emt 0:00:21]} axb5 {[%emt 0:00:27]} 50. axb5 {[%emt 0:00:04]} Rf6 {[%emt 0:00:47]} 51. Rc7+ {[%emt 0:01:51]} Kg6 {[%emt 0:02:06]} 52. b6 {[%emt 0:00:07]} Rxb6 {[%emt 0:01:10]} 53. Rg1+ {[%emt 0:01:22]} Kf6 54. Ra7 {[%emt 0:01:18]} 0-1